bitfinex/quotes_ETHUSD_20250930
["timestamp","ask_amount","ask_price","bid_price","bid_amount"]
[1759260645261,0.006,4129.3,4129.2,10.18012791]
[1759260645639,0.006,4129.3,4129.2,15.45512791]
[1759260645843,0.006,4129.3,4129.2,14.02512791]
[1759260646251,0.006,4129.3,4129.2,13.68555417]
[1759260646770,0.006,4129.3,4129.2,14.02512791]
[1759260647351,0.006,4129.3,4129.2,14.50778742]
[1759260650274,0.006,4129.3,4129.2,12.08601081]
[1759260650572,0.006,4129.3,4129.2,14.50778742]
[1759260650973,0.006,4129.3,4129.2,14.27528742]
[1759260651163,0.006,4129.3,4129.2,14.50778742]
[1759260653074,0.006,4129.3,4129.2,5.09113707]
[1759260653243,0.708,4129.3,4129.2,0.60345951]
[1759260653446,0.708,4129.3,4129.2,5.87645951]
[1759260653653,0.708,4129.3,4129.2,6.66845951]
[1759260654254,0.006,4129.3,4129.2,6.66845951]
[1759260654690,0.006,4129.3,4129.2,5.87645951]
[1759260654691,0.4644,4129.3,4129.2,5.87645951]
[1759260654899,3.12971796,4129.3,4129.2,5.87645951]
[1759260655225,8.70828903,4129.3,4129.2,5.3938]
[1759260655552,8.70828903,4129.3,4129.2,6.1858]
[1759260657165,0.006,4129.3,4129.2,6.1858]
[1759260657370,3.12971796,4129.3,4129.2,6.1858]
[1759260658999,3.12971796,4129.3,4129.2,0.1208]
[1759260659198,2.42189392,4129.0,4128.7,0.1208]
[1759260659415,2.42195257,4128.9,4128.8,2.8]
[1759260659572,3.12395257,4128.9,4128.8,2.8]
[1759260661968,0.702,4128.9,4128.8,2.8]
[1759260662169,2.42184139,4129.1,4128.9,0.792]
[1759260662484,2.42189392,4129.0,4128.8,0.1208]
[1759260662679,2.42189392,4129.0,4128.9,3.6678]
[1759260662879,3.12389392,4129.0,4128.9,0.9128]
[1759260663301,3.12389392,4129.0,4128.9,2.5688]
[1759260663501,8.70246499,4129.0,4128.9,2.5688]
[1759260663701,8.70246499,4129.0,4128.9,1.656]
[1759260664702,2.42201123,4128.8,4128.7,0.1208]
[1759260664902,2.42201123,4128.8,4128.7,3.6688]
[1759260665204,2.42201123,4128.8,4128.5,0.002]
[1759260665205,2.42212856,4128.6,4128.5,0.002]
[1759260665403,8.00069963,4128.6,4128.5,2.758]
[1759260665604,8.70269963,4128.6,4128.5,2.758]
[1759260665904,3.12412856,4128.6,4128.5,3.55]
[1759260666108,2.42212856,4128.6,4128.5,3.55]
[1759260667506,3.12412856,4128.6,4128.5,3.55]
[1759260668407,2.42212856,4128.6,4128.5,3.55]
[1759260668575,3.12412856,4128.6,4128.5,3.55]
[1759260668778,3.12412856,4128.6,4128.5,0.794]
[1759260668989,3.12412856,4128.6,4128.5,3.55]
[1759260669601,2.42212856,4128.6,4128.5,3.55]
[1759260670381,0.1208,4129.2,4128.6,0.792]
[1759260670583,2.4220699,4128.7,4128.6,0.792]
[1759260670992,2.4220699,4128.7,4128.6,0.9128]
[1759260671517,2.4,4129.2,4128.6,0.9128]
[1759260671709,2.4220699,4128.7,4128.6,1.1612]
[1759260672114,2.4220699,4128.7,4128.6,0.9128]
[1759260674112,2.4220699,4128.7,4128.6,1.04452852]
[1759260674317,3.1198699,4128.7,4128.6,1.04452852]
[1759260674517,2.4220699,4128.7,4128.6,1.04452852]
[1759260677100,2.4220699,4128.7,4128.6,1.84962137]
[1759260677316,2.4220699,4128.7,4128.6,2.09802137]
[1759260677612,2.4220699,4128.7,4128.6,2.09815244]
[1759260677835,2.4220699,4128.7,4128.6,1.29305959]
[1759260678042,5.57857107,4129.1,4128.6,1.29305959]
[1759260678226,2.42186047,4129.1,4128.8,0.792]
[1759260678400,2.42872028,4129.3,4129.0,0.792]
[1759260678598,0.007,4129.3,4129.1,4.01726555]
[1759260678809,0.007,4129.3,4129.2,0.82505959]
[1759260679801,0.007,4129.3,4129.2,0.84927735]
[1759260680000,0.007,4129.3,4129.2,0.82505959]
[1759260680230,0.007,4129.3,4129.2,1.3422839]
[1759260680434,0.007,4129.3,4129.2,2.1342839]
[1759260680730,0.007,4129.3,4129.2,2.11006614]
[1759260681029,0.007,4129.3,4129.2,1.66456614]
[1759260681202,0.007,4129.3,4129.2,1.41686614]
[1759260681403,0.007,4129.3,4129.2,3.67985959]
[1759260681624,2.42871796,4129.3,4129.2,3.67985959]
[1759260681798,0.007,4129.3,4129.2,3.67985959]
[1759260682001,0.007,4129.3,4129.2,4.51807735]
[1759260683130,0.6985,4131.1,4129.6,0.792]
[1759260683333,2.42101343,4130.6,4129.8,0.792]
[1759260683500,2.42101343,4130.6,4130.5,0.9128]
[1759260683700,0.2461,4131.0,4130.6,0.792]
[1759260683923,0.6985,4130.9,4130.7,2.88885959]
[1759260684228,8.69785167,4130.9,4130.8,0.13599728]
[1759260685128,8.45175167,4130.9,4130.8,0.13599728]
[1759260685436,2.42054559,4131.3,4130.9,0.792]
[1759260685634,2.42054559,4131.3,4130.5,0.2477]
[1759260685635,7.99917525,4131.2,4131.1,0.9128]
[1759260685834,8.69767525,4131.2,4131.1,3.80579728]
[1759260686133,8.69767525,4131.2,4131.1,0.25679728]
[1759260686431,8.81847525,4131.2,4131.1,1.007]
[1759260686934,3.23990418,4131.2,4131.1,1.007]
[1759260687234,2.42095579,4130.6,4130.5,0.9128]
[1759260687533,2.42095579,4130.6,4130.5,3.80631362]
[1759260689909,2.42071089,4131.1,4130.5,3.80631362]
[1759260689910,0.4524,4132.9,4130.6,0.792]
[1759260690127,0.2461,4133.3,4130.8,0.792]
[1759260690309,2.41978892,4132.6,4131.0,3.192]
[1759260690518,0.6985,4132.8,4131.4,0.792]
[1759260690756,2.41978415,4132.6,4131.6,0.792]
[1759260690908,2.4197256,4132.7,4131.8,0.792]
[1759260691109,0.6985,4132.8,4132.0,0.792]
[1759260691321,0.6985,4132.8,4131.9,3.14721362]
[1759260691322,3.11818815,4132.8,4132.2,0.792]
[1759260691514,2.4197256,4132.7,4132.4,0.792]
[1759260691710,2.41984271,4132.5,4132.4,0.792]
[1759260691931,2.41984271,4132.5,4132.4,0.92702661]
[1759260692312,2.41984271,4132.5,4132.4,2.764]
[1759260692615,2.41980725,4132.6,4132.5,0.792]
[1759260692826,2.41980725,4132.6,4132.5,3.557]
[1759260693138,2.41966705,4132.8,4132.5,3.557]
[1759260693340,2.41978415,4132.6,4132.5,3.557]
[1759260697123,0.64696664,4136.8,4132.6,0.792]
[1759260697314,0.6985,4136.7,4133.8,0.792]
[1759260697516,0.72631135,4136.1,4134.5,2.41865116]
[1759260697714,0.01,4137.7,4134.7,2.4]
[1759260697916,0.01,4137.7,4137.6,0.12620282]
[1759260698149,0.01,4137.7,4137.6,2.93820282]
[1759260698445,2.4268016,4137.7,4137.6,2.93820282]
[1759260698644,2.6229016,4137.7,4137.6,2.93820282]
[1759260698845,3.0753016,4137.7,4137.6,3.73020282]
[1759260699047,3.0753016,4137.7,4137.6,2.93820282]
[1759260699418,0.2461,4139.0,4137.6,2.93820282]
[1759260699619,2.41674319,4137.8,4137.6,2.93820282]
[1759260699841,3.1153016,4137.7,4137.6,2.93820282]
[1759260700040,5.5153016,4137.7,4137.6,2.93820282]
[1759260700540,2.41712047,4137.2,4135.6,0.792]
[1759260700763,2.4180181,4135.7,4135.3,0.4455]
[1759260700961,2.41800999,4135.7,4135.3,0.4455]
[1759260701169,2.41803611,4135.6,4135.4,0.4721]
[1759260701356,2.41803611,4135.6,4135.5,0.792]
[1759260701738,2.41803611,4135.6,4135.5,3.683]
[1759260702584,2.41802882,4135.6,4135.5,2.891]
[1759260703163,3.11002882,4135.6,4135.5,2.891]
[1759260703461,2.66662882,4135.6,4135.5,2.891]
[1759260703662,2.41802882,4135.6,4135.5,2.891]
[1759260703856,2.41802882,4135.6,4135.5,3.683]
[1759260704072,2.4,4136.4,4135.5,3.683]
[1759260704073,0.2486,4136.6,4135.6,0.792]
[1759260704253,0.2486,4137.1,4135.8,0.792]
[1759260704572,2.41742387,4136.7,4136.0,0.792]
[1759260704743,0.4434,4138.3,4136.2,0.792]
[1759260704946,2.41656799,4138.1,4136.4,0.792]
[1759260705167,0.692,4138.0,4136.1,3.3671]
[1759260705369,2.4174129,4136.7,4136.2,0.792]
[1759260705573,2.41732908,4136.8,4136.2,1.235817]
[1759260705775,2.41738862,4136.7,4136.3,0.02417619]
[1759260705972,2.41733302,4136.8,4136.3,0.02417619]
[1759260706182,2.41732541,4136.9,4136.3,0.49627619]
[1759260706346,2.41715211,4137.1,4136.3,0.49627619]
[1759260706673,0.2486,4137.3,4136.3,0.02417619]
[1759260706864,2.41759088,4136.4,4136.2,0.792]
[1759260707063,0.4434,4137.2,4136.2,0.792]
[1759260707241,2.41721769,4137.0,4136.2,0.792]
[1759260707664,2.41745576,4136.6,4136.2,0.792]
[1759260708042,2.41719418,4137.1,4136.3,0.02417619]
[1759260708248,0.2486,4137.6,4136.5,0.792]
[1759260708476,0.2486,4137.6,4136.4,0.52802762]
[1759260708477,2.41716537,4137.1,4136.7,0.792]
[1759260708680,2.4,4138.0,4136.9,0.792]
[1759260708884,0.2486,4138.6,4137.1,0.792]
[1759260709179,2.41680238,4137.7,4137.3,0.792]
[1759260709346,2.41686001,4137.6,4137.3,0.792]
[1759260709541,0.2486,4138.1,4137.3,0.792]
[1759260709542,2.41679637,4137.8,4137.3,0.792]
[1759260709747,0.2486,4138.1,4137.3,0.792]
[1759260709976,2.41551704,4140.0,4137.4,0.02416976]
[1759260710177,2.41551704,4140.0,4137.5,1.16341698]
[1759260710478,2.41669544,4137.9,4137.5,1.16341698]
[1759260710674,2.41586741,4139.3,4137.3,0.792]
[1759260710675,0.2486,4138.3,4137.3,0.792]
[1759260710984,2.41656799,4138.1,4137.2,2.898]
[1759260711145,2.66522638,4138.0,4137.9,0.1208]
[1759260711352,3.10862638,4138.0,4137.9,2.9]
[1759260711669,3.10862638,4138.0,4136.5,0.4721]
[1759260711670,2.41691842,4137.5,4136.5,0.4721]
[1759260711878,2.41691842,4137.5,4136.0,0.1097]
[1759260711879,2.41738583,4136.7,4136.0,0.5818]
[1759260712182,2.66598583,4136.7,4136.6,2.6358]
[1759260712666,2.66598583,4136.7,4136.6,5.5358]
[1759260713351,0.1208,4137.5,4136.6,5.5358]
[1759260713352,2.4172562,4137.0,4136.7,0.792]
[1759260713554,2.41694749,4137.5,4136.9,0.9128]
[1759260713865,2.41694749,4137.5,4137.0,0.0241721]
[1759260714068,2.41685083,4137.7,4137.5,0.792]
[1759260714268,2.66524264,4138.0,4137.2,0.792]
[1759260714269,2.41686001,4137.6,4137.2,0.792]
[1759260714487,2.41691842,4137.5,4137.4,0.792]
[1759260714852,2.41691842,4137.5,4137.4,0.9128]
[1759260715780,2.66551842,4137.5,4137.4,0.9128]
[1759260716293,2.41691842,4137.5,4137.4,0.9128]
[1759260717185,2.41655119,4138.2,4137.4,0.9128]
[1759260717186,0.2486,4140.4,4138.5,0.792]
[1759260717388,0.2486,4140.4,4138.9,0.792]
[1759260717584,2.41564856,4139.7,4139.1,0.792]
[1759260717752,0.692,4140.3,4139.3,0.792]
[1759260717753,0.2486,4140.0,4139.3,0.792]
[1759260718057,2.41551728,4139.9,4139.3,0.792]
[1759260718258,2.85897563,4139.8,4139.3,0.792]
[1759260718464,2.41580905,4139.4,4139.3,0.792]
[1759260718864,2.41586741,4139.3,4139.2,2.92]
[1759260719111,3.10786741,4139.3,4139.2,2.92]
[1759260719389,2.41592578,4139.2,4137.6,0.4721]
[1759260719555,2.41598415,4139.1,4137.7,0.02416801]
[1759260719755,2.41674319,4137.8,4137.7,0.02416801]
[1759260720081,3.10804491,4139.0,4137.6,0.4721]
[1759260720261,0.2486,4138.9,4137.7,0.02416801]
[1759260720579,2.41505059,4140.7,4137.9,0.792]
[1759260720781,0.001,4139.3,4138.3,0.792]
[1759260720948,0.001,4139.3,4138.0,1.03245626]
[1759260720949,0.001,4139.3,4139.1,0.792]
[1759260721150,0.001,4139.3,4139.2,6.15315925]
[1759260721352,0.001,4139.3,4139.2,6.129]
[1759260721699,0.001,4139.3,4139.2,6.7109]
[1759260721862,0.001,4139.3,4139.2,4.98199]
[1759260722197,0.001,4139.3,4139.2,3.729]
[1759260722495,0.001,4139.3,4139.2,4.2011]
[1759260722798,2.41686741,4139.3,4139.2,4.2011]
[1759260723027,0.001,4139.3,4139.2,3.729]
[1759260723510,0.001,4139.3,4139.2,4.3109]
[1759260723705,0.001,4139.3,4139.2,4.74199]
[1759260724128,0.001,4139.3,4139.2,3.729]
[1759260724328,0.001,4139.3,4139.2,4.3109]
[1759260725181,0.001,4139.3,4139.2,3.729]
[1759260725393,2.41686741,4139.3,4139.2,2.937]
[1759260726119,0.001,4139.3,4139.2,3.729]
[1759260726487,0.001,4139.3,4139.2,2.937]
[1759260726812,3.10886741,4139.3,4139.2,2.937]
[1759260727319,2.66546741,4139.3,4139.2,3.0578]
[1759260727918,3.10886741,4139.3,4139.2,3.0578]
[1759260728120,0.001,4139.3,4139.2,3.0578]
[1759260728288,0.001,4139.3,4139.2,3.729]
[1759260728682,2.41566372,4139.7,4139.3,0.792]
[1759260729016,2.41569233,4139.6,4139.3,0.792]
[1759260729217,2.41570481,4139.6,4139.3,0.792]
[1759260729421,2.4155848,4139.8,4139.3,0.792]
[1759260729618,2.41575448,4139.5,4139.3,0.792]
[1759260729813,2.41568657,4139.7,4139.3,0.792]
[1759260730019,2.41551354,4140.0,4139.5,0.792]
[1759260730183,2.41541346,4140.1,4139.6,0.02415692]
[1759260730383,2.41547583,4140.0,4139.7,2.934]
[1759260730586,0.2486,4140.6,4139.7,2.934]
[1759260730780,2.41557563,4139.8,4139.7,3.726]
[1759260732319,2.65827563,4139.8,4139.7,3.726]
[1759260732899,2.41557563,4139.8,4139.7,3.726]
[1759260734329,2.65827563,4139.8,4139.7,3.726]
[1759260734908,2.41557563,4139.8,4139.7,3.726]
[1759260737430,2.65827563,4139.8,4139.7,3.726]
[1759260737641,2.65827563,4139.8,4139.7,2.934]
[1759260737642,3.12827563,4139.8,4139.7,2.934]
[1759260739726,2.41616501,4138.8,4138.0,0.86719]
[1759260740133,2.41616501,4138.8,4138.7,0.9128]
[1759260740821,3.11576501,4138.8,4138.7,0.1208]
[1759260741025,2.64576501,4138.8,4138.7,3.8298]
[1759260742163,3.11576501,4138.8,4138.7,3.8298]
[1759260743223,3.11576501,4138.8,4138.7,3.0378]
[1759260744247,3.11576501,4138.8,4138.7,2.917]
[1759260744248,2.64576501,4138.8,4138.7,2.917]
[1759260744565,3.11576501,4138.8,4138.7,2.917]
[1759260744767,2.41662638,4138.0,4137.8,0.002]
[1759260744920,2.41668479,4137.9,4137.8,0.002]
[1759260746050,2.41668479,4137.9,4137.8,3.708]
[1759260748021,2.64628479,4137.9,4137.8,3.708]
[1759260749055,2.88643107,4138.4,4137.8,3.708]
[1759260749056,2.41645119,4138.3,4137.8,3.708]
[1759260749240,2.41668479,4137.9,4137.8,2.916]
[1759260750336,2.41634322,4138.5,4137.9,0.792]
[1759260750530,2.41631851,4138.6,4138.1,0.792]
[1759260750853,2.41620341,4138.8,4138.3,0.792]
[1759260751023,2.41616728,4138.8,4138.4,0.02416392]
[1759260751229,2.41543615,4140.1,4138.4,0.02416392]
[1759260751230,0.2296,4139.6,4138.5,0.792]
[1759260751431,2.41597244,4139.2,4138.6,3.3498]
[1759260751951,2.41601132,4139.1,4138.6,3.3498]
[1759260752152,2.41605976,4139.0,4138.6,2.909]
[1759260752356,2.41610089,4138.9,4138.8,0.792]
[1759260752655,0.2296,4139.3,4138.6,2.909]
[1759260752656,0.2296,4139.3,4138.7,0.792]
[1759260752826,2.41609527,4139.0,4138.7,0.792]
[1759260753028,2.41609499,4139.0,4138.8,0.4408]
[1759260753362,2.41569233,4139.6,4138.8,0.4408]
[1759260753657,2.41604973,4139.0,4138.7,0.792]
[1759260753831,2.41614398,4138.9,4138.7,0.792]
[1759260754251,2.41614398,4138.9,4138.8,0.1208]
[1759260754558,2.64574398,4138.9,4138.8,0.1208]
[1759260755625,2.64574398,4138.9,4138.6,2.909]
[1759260755626,2.41621765,4138.7,4138.6,2.909]
[1759260755827,2.64581765,4138.7,4138.6,2.909]
[1759260756628,3.11581765,4138.7,4138.6,2.909]
[1759260758284,3.23661765,4138.7,4138.6,2.909]
[1759260758463,3.23661765,4138.7,4137.8,0.002]
[1759260758464,2.41650959,4138.2,4137.8,0.002]
[1759260758672,2.41668479,4137.9,4137.8,0.002]
[1759260759374,2.41661201,4138.1,4137.9,0.792]
[1759260759580,2.41633535,4138.5,4138.1,0.792]
[1759260759774,2.41650959,4138.2,4138.1,1.4604]
[1759260759976,2.41650959,4138.2,4138.1,0.792]
[1759260760179,2.41650959,4138.2,4138.1,0.9128]
[1759260760370,0.2296,4138.8,4138.1,0.9128]
[1759260760567,2.41650236,4138.3,4138.1,0.9128]
[1759260760756,2.4,4138.7,4138.4,0.1208]
[1759260760959,0.248,4138.6,4138.5,2.9]
[1759260761277,2.66427603,4138.6,4138.5,2.9]
[1759260762166,3.09857603,4138.6,4138.5,2.9]
[1759260764581,3.0823,4138.6,4137.8,0.002]
[1759260764779,3.0823,4138.6,4137.9,0.646]
[1759260764780,2.41662638,4138.0,4137.9,0.646]
[1759260764979,2.66462638,4138.0,4137.9,0.646]
[1759260765180,3.09892638,4138.0,4137.9,0.646]
[1759260766816,2.41662638,4138.0,4137.9,0.646]
[1759260768577,2.66462638,4138.0,4137.9,0.646]
[1759260769184,5.49892638,4138.0,4137.9,0.646]
[1759260769384,2.41668479,4137.9,4137.8,0.002]
[1759260769584,2.78548479,4137.9,4137.8,2.892]
[1759260777914,2.53748479,4137.9,4137.8,2.892]
[1759260778087,2.78548479,4137.9,4137.8,2.892]
[1759260778695,5.18548479,4137.9,4137.8,2.892]
[1759260780108,5.61978479,4137.9,4137.8,2.892]
[1759260782100,5.61978479,4137.9,4137.3,0.002]
[1759260782101,2.41697684,4137.4,4137.3,0.002]
[1759260782626,0.1208,4137.7,4137.5,0.792]
[1759260782910,0.001,4138.6,4137.6,1.5092686]
[1759260782911,2.41645282,4138.3,4137.6,1.5092686]
[1759260783227,2.41761418,4138.1,4137.8,0.792]
[1759260783521,2.41761418,4138.1,4137.7,3.5751]
[1759260783522,2.41674319,4137.8,4137.7,2.882]
[1759260783721,0.001,4138.1,4137.7,2.882]
[1759260784028,0.001,4138.1,4137.8,1.4851]
[1759260784199,2.41757416,4138.1,4137.8,1.4851]
[1759260784402,2.41757416,4138.1,4137.9,0.6931]
[1759260784611,2.41662638,4138.0,4137.9,0.6931]
[1759260784991,2.41697684,4137.4,4137.3,0.002]
[1759260785189,2.41697684,4137.4,4137.3,2.887]
[1759260786122,2.66497684,4137.4,4137.3,2.887]
[1759260786509,5.06497684,4137.4,4137.3,2.887]
[1759260786720,4.81697684,4137.4,4137.3,2.887]
[1759260786933,4.81697684,4137.4,4137.3,3.3319]
[1759260787135,4.81697684,4137.4,4137.3,2.887]
[1759260787633,4.81697684,4137.4,4137.3,3.5801]
[1759260787808,4.81697684,4137.4,4137.3,4.0811]
[1759260788208,4.81697684,4137.4,4137.3,3.8329]
[1759260788626,4.81697684,4137.4,4137.3,3.388]
[1759260789544,5.06497684,4137.4,4137.3,3.388]
[1759260790112,4.81697684,4137.4,4137.3,3.388]
[1759260790709,5.06497684,4137.4,4137.3,3.388]
[1759260791407,5.06497684,4137.4,4137.3,0.503]
[1759260791631,5.50287684,4137.4,4137.3,3.383]
[1759260792436,5.06497684,4137.4,4137.3,3.383]
[1759260792746,5.18577684,4137.4,4137.3,3.383]
[1759260793151,4.93777684,4137.4,4137.3,3.383]
[1759260794135,4.93777684,4137.4,4137.3,3.53585999]
[1759260795310,5.16677684,4137.4,4137.3,3.53585999]
[1759260795639,4.93777684,4137.4,4137.3,3.53585999]
[1759260795840,5.16677684,4137.4,4137.3,3.53585999]
[1759260796329,5.16677684,4137.4,4137.3,3.383]
[1759260796520,4.93777684,4137.4,4137.3,3.53584165]
[1759260797322,5.16677684,4137.4,4137.3,3.53584165]
[1759260798444,5.16677684,4137.4,4137.3,3.53582633]
[1759260799018,4.81697684,4137.4,4137.3,4.22852633]
[1759260799713,2.4,4137.4,4137.3,4.22852633]
[1759260799913,4.81697684,4137.4,4137.3,4.22852633]
[1759260800316,0.001,4137.8,4137.3,4.22852633]
[1759260800645,0.001,4137.8,4137.4,0.84552633]
[1759260800849,0.001,4137.8,4137.5,0.96899551]
[1759260801149,0.001,4137.8,4137.7,3.2088016]
[1759260801348,0.001,4137.8,4137.7,3.36162793]
[1759260801514,0.001,4137.8,4137.7,4.07849594]
[1759260801824,0.001,4137.8,4137.7,5.01543736]
[1759260802023,0.001,4137.8,4137.7,4.99126935]
[1759260802348,0.001,4137.8,4137.7,3.71852633]
[1759260804149,0.001,4137.8,4137.7,4.51052633]
[1759260804730,0.001,4137.8,4137.7,4.53469434]
[1759260805258,0.001,4137.8,4137.7,6.95149594]
[1759260805467,0.001,4137.8,4137.7,6.92732793]
[1759260805622,0.001,4137.8,4137.7,7.86175196]
[1759260806245,0.001,4137.8,4137.7,8.36275196]
[1759260807264,0.001,4137.8,4137.7,5.94595036]
[1759260807641,0.001,4137.8,4137.7,4.78512633]
[1759260807963,0.001,4137.8,4137.7,5.01152633]
[1759260808171,0.001,4137.8,4137.7,4.78512633]
[1759260808467,2.41774319,4137.8,4137.7,3.52682633]
[1759260808932,2.41663198,4138.0,4137.7,3.64762633]
[1759260809129,2.41662638,4138.0,4137.8,0.15282633]
[1759260809335,2.41662638,4138.0,4137.9,3.01982633]
[1759260810328,2.64312638,4138.0,4137.9,3.01982633]
[1759260810967,2.64312638,4138.0,4137.9,3.01882633]
[1759260811149,2.41662638,4138.0,4137.9,3.01882633]
[1759260811661,2.41662638,4138.0,4137.9,0.15282633]
[1759260811866,2.41662638,4138.0,4137.9,3.01782633]
[1759260812032,2.64312638,4138.0,4137.9,3.01682633]
[1759260812635,2.64312638,4138.0,4137.9,3.51782633]
[1759260813432,3.08162638,4138.0,4137.9,3.51782633]
[1759260813837,3.20242638,4138.0,4137.9,3.51782633]
[1759260814850,3.20242638,4138.0,4137.9,3.365]
[1759260818956,3.20342638,4138.0,4137.9,3.365]
[1759260820742,2.53842638,4138.0,4137.9,3.365]
[1759260821143,2.53842638,4138.0,4137.9,3.51777425]
[1759260821461,3.23262638,4138.0,4137.9,3.51777425]
[1759260821660,5.16962638,4138.0,4137.9,3.365]
[1759260821974,5.63262638,4138.0,4137.9,3.365]
[1759260823357,4.93842638,4138.0,4137.9,3.365]
[1759260823748,5.63262638,4138.0,4137.9,3.365]
[1759260828951,2.4168016,4137.7,4137.6,0.002]
[1759260829276,2.5376016,4137.7,4137.6,0.002]
[1759260829482,2.7688016,4137.7,4137.6,0.002]
[1759260829886,2.5376016,4137.7,4137.6,0.002]
[1759260830085,2.5376016,4137.7,4137.6,2.848]
[1759260832063,2.5376016,4137.7,4137.6,0.002]
[1759260832265,2.7688016,4137.7,4137.6,2.846]
[1759260832467,5.6318016,4137.7,4137.6,2.846]
[1759260832695,5.6318016,4137.7,4137.6,2.845]
[1759260833999,5.1688016,4137.7,4137.6,0.002]
[1759260834169,5.6318016,4137.7,4137.6,2.845]
[1759260835071,2.41697684,4137.4,4137.3,0.002]
[1759260835274,4.93777684,4137.4,4137.3,0.002]
[1759260835484,3.215,4137.4,4135.6,2.514]
[1759260835770,3.215,4137.4,4136.3,0.4398]
[1759260835771,2.41750271,4136.5,4136.3,0.4398]
[1759260836201,2.41750271,4136.5,4136.4,3.2838]
[1759260836581,2.41750271,4136.5,4136.4,3.5336]
[1759260837477,2.41750271,4136.5,4136.4,2.844]
[1759260837683,2.41750271,4136.5,4136.4,3.2838]
[1759260838080,2.41750271,4136.5,4136.4,0.002]
[1759260838286,2.41750271,4136.5,4136.4,1.94]
[1759260840613,2.41750271,4136.5,4136.4,2.3798]
[1759260840783,2.41750271,4136.5,4136.4,1.94]
[1759260840985,2.41750271,4136.5,4136.4,0.002]
[1759260841184,2.41750271,4136.5,4136.4,2.839]
[1759260841391,2.64870271,4136.5,4136.4,2.839]
[1759260841981,2.64870271,4136.5,4136.4,0.002]
[1759260842193,5.51170271,4136.5,4136.4,0.002]
[1759260842418,5.51170271,4136.5,4136.4,1.202]
[1759260842833,4.81756116,4136.4,4136.3,0.002]
[1759260843155,5.40136116,4136.4,4136.3,0.002]
[1759260843337,2.41802882,4135.6,4134.8,0.3706]
[1759260843631,2.41802882,4135.6,4134.8,0.1208]
[1759260843918,5.63302882,4135.6,4135.5,2.839]
[1759260844085,5.17002882,4135.6,4135.5,2.839]
[1759260844830,2.41881549,4134.3,4133.5,2.514]
[1759260845052,2.41881549,4134.3,4134.2,0.1208]
[1759260845328,2.41881549,4134.3,4134.2,0.8104]
[1759260845630,2.41878915,4134.3,4134.2,0.8104]
[1759260845821,2.41873656,4134.4,4134.2,0.8104]
[1759260846016,2.41873656,4134.4,4134.3,0.6896]
[1759260846230,2.41873656,4134.4,4134.3,3.5256]
[1759260846801,2.41873656,4134.4,4134.3,0.4398]
[1759260847019,2.41873065,4134.4,4134.3,3.5256]
[1759260847547,2.41873065,4134.4,4134.3,3.2758]
[1759260847852,2.41878915,4134.3,4134.2,0.1208]
[1759260848150,2.41902319,4133.9,4133.8,0.4398]
[1759260848314,2.41902319,4133.9,4132.7,3.46153798]
[1759260848315,2.41902319,4133.9,4132.7,0.7263685]
[1759260848517,2.41878087,4134.4,4133.2,0.2498]
[1759260848716,2.41930182,4133.5,4133.3,3.2738]
[1759260848911,2.41908171,4133.8,4133.7,0.1208]
[1759260849226,2.41908171,4133.8,4133.7,2.9548]
[1759260849434,2.41925728,4133.5,4133.4,0.6896]
[1759260849636,2.41925728,4133.5,4133.4,3.3946]
[1759260850243,2.41925728,4133.5,4133.4,3.2738]
[1759260850615,2.41925728,4133.5,4133.4,2.834]
[1759260850812,2.41925728,4133.5,4133.4,3.5236]
[1759260851216,2.4,4133.9,4133.4,3.5236]
[1759260851417,2.41925728,4133.5,4133.4,3.0838]
[1759260852015,2.41925728,4133.5,4133.4,3.5435]
[1759260853847,2.41925728,4133.5,4133.4,3.2937]
[1759260854432,2.41925728,4133.5,4133.4,0.4597]
[1759260854634,0.352,4134.0,4133.4,0.4597]
[1759260854635,0.1208,4134.0,4133.4,3.2907]
[1759260854960,3.20996863,4135.8,4133.4,3.2907]
[1759260854961,2.41873919,4134.4,4133.6,3.21115636]
[1759260855258,2.41873919,4134.4,4133.7,0.84486025]
[1759260855460,2.41841796,4135.0,4133.5,2.76040183]
[1759260855461,2.4,4135.1,4133.8,0.6925]
[1759260855659,2.41827886,4135.2,4133.8,2.834]
[1759260855660,2.41902319,4133.9,4133.8,2.834]
[1759260855831,0.233,4134.5,4133.8,3.5265]
[1759260856025,2.41884981,4134.2,4133.9,0.4597]
[1759260856243,2.41891994,4134.1,4134.0,0.6925]
[1759260856721,2.41891994,4134.1,4134.0,0.4597]
[1759260856933,2.41902319,4133.9,4133.8,2.834]
[1759260857141,2.41902319,4133.9,4133.8,2.833]
[1759260857672,2.41902319,4133.9,4132.8,0.4537]
[1759260857673,2.41908171,4133.8,4132.8,0.4537]
[1759260857843,2.41954964,4133.1,4132.9,2.98541743]
[1759260858037,2.41943401,4133.2,4133.0,0.60611743]
[1759260858242,2.41943401,4133.2,4133.1,0.15241743]
[1759260859675,2.41945968,4133.2,4133.0,0.15245428]
[1759260859870,2.41945968,4133.2,4133.1,0.15245428]
[1759260860976,2.41954996,4133.0,4132.9,0.002]
[1759260861135,2.41954996,4133.0,4132.9,2.832]
[1759260861335,2.41949656,4133.1,4132.9,3.43819585]
[1759260861569,2.41949142,4133.1,4133.0,0.60619585]
[1759260862151,2.41949142,4133.1,4133.0,0.15249585]
[1759260862977,2.41949142,4133.1,4133.0,2.98149585]
[1759260863210,2.41949142,4133.1,4133.0,2.98164164]
[1759260863558,2.41954996,4133.0,4132.9,0.002]
[1759260863756,2.65564996,4133.0,4132.9,2.831]
[1759260865005,2.41954996,4133.0,4132.9,2.831]
[1759260865358,2.41954996,4133.0,4132.9,2.98372484]
[1759260865761,2.41934614,4133.4,4132.9,3.67642484]
[1759260866086,2.41934614,4133.4,4133.0,0.84542484]